fUSD/lending_fUSD_20250426
["ID","MTS","AMOUNT","RATE_DAILY","PERIOD"]
[359049758,1745675439077,-400.0,0.00019978,2]
[359049760,1745675439087,-177.15994259,0.00019978,2]
[359049762,1745675439097,-452.07,0.00019978,2]
[359049764,1745675439108,-818.01,0.00019978,2]
[359049765,1745675439118,-400.0,0.00019978,2]
[359049768,1745675439128,-400.0,0.00019978,2]
[359049770,1745675439138,-400.0,0.00019978,2]
[359049772,1745675439147,-400.0,0.00019978,2]
[359049773,1745675439157,-411.76,0.00019978,2]
[359049775,1745675439167,-327.85384651,0.00019978,2]
[359049778,1745675439177,-400.0,0.00019978,2]
[359049780,1745675439187,-400.0,0.00019978,2]
[359049782,1745675439196,-400.0,0.00019978,2]
[359049784,1745675439206,-411.54,0.00019978,2]
[359049786,1745675439215,-400.0,0.00019978,2]
[359049788,1745675439225,-519.52,0.00019978,2]
[359049790,1745675439234,-1007.54,0.00019978,2]
[359049792,1745675439244,-1013.83,0.00019978,2]
[359049794,1745675439253,-400.0,0.00019978,2]
[359049796,1745675439262,-400.0,0.00019978,2]
[359049797,1745675439272,-938.13,0.00019978,2]
[359049799,1745675439281,-800.91,0.00019978,2]
[359049801,1745675439290,-8522.92,0.00019978,2]
[359049803,1745675439300,-616.92,0.00019978,2]
[359049806,1745675439311,-570.27,0.00019978,2]
[359049807,1745675439320,-400.0,0.00019978,2]
[359049810,1745675439331,-684.55,0.00019978,2]
[359049812,1745675439342,-400.0,0.00019978,2]
[359049814,1745675439351,-400.0,0.00019978,2]
[359049816,1745675439362,-400.0,0.00019978,2]
[359049817,1745675439372,-403.8,0.00019978,2]
[359049819,1745675439382,-669.37,0.00019978,2]
[359049821,1745675439392,-400.0,0.00019978,2]
[359049824,1745675439402,-400.0,0.00019978,2]
[359049825,1745675439414,-400.0,0.00019978,2]
[359049828,1745675439424,-546.71,0.00019978,2]
[359049830,1745675439434,-400.0,0.00019978,2]
[359049831,1745675439444,-400.0,0.00019978,2]
[359049833,1745675439454,-166.68953543,0.00019978,2]
[359049835,1745675439464,-833.84,0.00019978,2]
[359049837,1745675439475,-690.09,0.00019978,2]
[359049840,1745675439486,-734.74,0.00019978,2]
[359049842,1745675439495,-686.32,0.00019978,2]
[359049843,1745675439505,-164.17271795,0.00019978,2]
[359049845,1745675439515,-400.0,0.00019978,2]
[359049847,1745675439524,-25938.961059,0.00019978,2]
[359049849,1745675439533,-400.0,0.00019978,2]
[359049851,1745675439543,-605.34,0.00019978,2]
[359049853,1745675439552,-510.2359106,0.00019978,2]
[359049855,1745675439562,-500.0,0.00019978,2]
[359049857,1745675439571,-400.0,0.00019979,2]
[359049859,1745675439581,-845.99,0.00019979,2]
[359049861,1745675439591,-500.64604961,0.00019979,2]
[359049863,1745675439600,-400.0,0.00019979,2]
[359049865,1745675439610,-200.0,0.00019979,2]
[359049867,1745675439620,-244.37037295,0.00019979,2]
[359049869,1745675439629,-503.20936265,0.00019979,2]
[359049871,1745675439639,-509.13702663,0.00019979,2]
[359049873,1745675439649,-400.0,0.00019979,2]
[359049875,1745675439660,-400.0,0.00019979,2]
[359049878,1745675439671,-400.0,0.00019979,2]
[359049880,1745675439680,-400.0,0.00019979,2]
[359049882,1745675439691,-400.0,0.00019979,2]
[359049884,1745675439702,-294.48053895,0.00019979,2]
[359049885,1745675439711,-187.42772855,0.00019979,2]
[359049887,1745675439721,-400.0,0.00019979,2]
[359049889,1745675439732,-400.0,0.00019979,2]
[359049891,1745675439742,-715.64,0.00019979,2]
[359049893,1745675439751,-400.0,0.00019979,2]
[359049895,1745675439761,-400.0,0.00019979,2]
[359049897,1745675439770,-507.83,0.00019979,2]
[359049899,1745675439779,-400.0,0.00019979,2]
[359049901,1745675439789,-400.0,0.00019979,2]
[359049903,1745675439799,-150.57996944,0.00019979,2]
[359049905,1745675439808,-400.0,0.00019979,2]
[359049907,1745675439818,-400.0,0.00019979,2]
[359049909,1745675439827,-790.6,0.00019979,2]
[359049911,1745675439837,-400.0,0.00019979,2]
[359049913,1745675439848,-765.76,0.00019979,2]
[359049915,1745675439858,-400.0,0.00019979,2]
[359049917,1745675439867,-216.45477984,0.00019979,2]
[359049919,1745675439877,-400.0,0.00019979,2]
[359049921,1745675439887,-400.0,0.00019979,2]
[359049923,1745675439898,-400.0,0.00019979,2]
[359049925,1745675439907,-400.0,0.00019979,2]
[359049927,1745675439917,-299.75946424,0.00019979,2]
[359049929,1745675439927,-400.0,0.00019979,2]
[359049932,1745675439936,-300.62533358,0.00019979,2]
[359049934,1745675439946,-400.0,0.00019979,2]
[359049936,1745675439955,-400.0,0.00019979,2]
[359049938,1745675439965,-400.0,0.00019979,2]
[359049940,1745675439975,-400.0,0.00019979,2]
[359049942,1745675439984,-400.0,0.00019979,2]
[359049944,1745675439994,-400.0,0.00019979,2]
[359049946,1745675440004,-400.0,0.00019979,2]
[359049948,1745675440013,-400.0,0.00019979,2]
[359049950,1745675440023,-400.0,0.00019979,2]
[359049978,1745675440288,-654.27,0.00019979,2]
[359049980,1745675440300,-400.0,0.00019979,2]
[359049982,1745675440310,-400.0,0.00019979,2]
[359049984,1745675440319,-625.41,0.00019979,2]
[359049986,1745675440331,-400.0,0.00019979,2]
[359049988,1745675440340,-400.0,0.00019979,2]
[359049990,1745675440350,-400.0,0.00019979,2]
[359049992,1745675440360,-400.0,0.00019979,2]
[359049994,1745675440370,-400.0,0.00019979,2]
[359049996,1745675440379,-400.0,0.00019979,2]
[359049998,1745675440389,-400.0,0.00019979,2]
[359050000,1745675440399,-568.09,0.00019979,2]
[359050002,1745675440410,-400.0,0.00019979,2]
[359050004,1745675440419,-373.45507487,0.00019979,2]
[359050006,1745675440428,-792.53,0.00019979,2]
[359050008,1745675440438,-400.0,0.00019979,2]
[359050010,1745675440447,-400.0,0.00019979,2]
[359050012,1745675440457,-400.0,0.00019979,2]
[359050014,1745675440466,-400.0,0.00019979,2]
[359050016,1745675440475,-511.51,0.00019979,2]
[359050018,1745675440485,-400.0,0.00019979,2]
[359050019,1745675440495,-753.77,0.00019979,2]
[359050021,1745675440504,-400.0,0.00019979,2]
[359050023,1745675440514,-419.1,0.00019979,2]
[359050025,1745675440523,-400.0,0.00019979,2]
[359050027,1745675440532,-443.3,0.00019979,2]
[359050029,1745675440542,-800.78,0.00019979,2]
[359050031,1745675440553,-400.0,0.00019979,2]
[359050033,1745675440562,-400.0,0.00019979,2]
[359050035,1745675440572,-200.0,0.00019979,2]
[359050037,1745675440581,-400.0,0.00019979,2]
[359050039,1745675440591,-400.0,0.00019979,2]
[359050041,1745675440601,-400.0,0.00019979,2]
[359050043,1745675440611,-636.72,0.00019979,2]
[359050045,1745675440621,-400.0,0.00019979,2]
[359050047,1745675440631,-400.0,0.00019979,2]
[359050049,1745675440641,-200.0,0.00019979,2]
[359050051,1745675440651,-400.0,0.00019979,2]
[359050053,1745675440661,-498.93,0.00019979,2]
[359050055,1745675440671,-200.0,0.00019979,2]
[359050057,1745675440681,-400.0,0.00019979,2]
[359050059,1745675440691,-400.0,0.00019979,2]
[359050061,1745675440700,-531.33,0.00019979,2]
[359050063,1745675440710,-400.0,0.00019979,2]
[359050065,1745675440720,-400.0,0.00019979,2]
[359050067,1745675440730,-400.0,0.00019979,2]
[359050069,1745675440739,-178.27373227,0.00019979,2]
[359050071,1745675440749,-400.0,0.00019979,2]
[359050073,1745675440760,-411.82,0.00019979,2]
[359050075,1745675440769,-400.0,0.00019979,2]
[359050078,1745675440780,-400.0,0.00019979,2]
[359050080,1745675440791,-400.0,0.00019979,2]
[359050081,1745675440802,-400.0,0.00019979,2]
[359050083,1745675440811,-400.0,0.00019979,2]
[359050085,1745675440821,-448.46,0.00019979,2]
[359050087,1745675440830,-718.44,0.00019979,2]
[359050089,1745675440839,-574.1,0.00019979,2]
[359050091,1745675440849,-202.30963719,0.00019979,2]
[359050092,1745675440859,-547.82,0.00019979,2]
[359050093,1745675440869,-400.0,0.00019979,2]
[359050094,1745675440880,-400.0,0.00019979,2]
[359050095,1745675440889,-508.87,0.00019979,2]
[359050096,1745675440898,-1005.3,0.00019979,2]
[359050097,1745675440909,-400.0,0.00019979,2]
[359050098,1745675440919,-400.0,0.00019979,2]
[359050099,1745675440928,-400.0,0.00019979,2]
[359050100,1745675440938,-300.0,0.00019979,2]
[359050101,1745675440947,-747.82,0.00019979,2]
[359050102,1745675440957,-200.0,0.00019979,2]
[359050103,1745675440967,-400.0,0.00019979,2]
[359050104,1745675440977,-400.0,0.00019979,2]
[359050106,1745675440987,-400.0,0.00019979,2]
[359050107,1745675440996,-400.0,0.00019979,2]
[359050109,1745675441006,-400.0,0.00019979,2]
[359050111,1745675441015,-400.0,0.00019979,2]
[359050113,1745675441025,-826.94,0.00019979,2]
[359050115,1745675441035,-1626.61,0.00019979,2]
[359050117,1745675441044,-410.27,0.00019979,2]
[359050119,1745675441054,-923.33,0.00019979,2]
[359050121,1745675441064,-642.88,0.00019979,2]
[359050123,1745675441073,-400.0,0.00019979,2]
[359050125,1745675441083,-400.0,0.00019979,2]
[359050127,1745675441092,-300.0,0.00019979,2]
[359050130,1745675441103,-400.0,0.00019979,2]
[359050132,1745675441113,-400.0,0.00019979,2]
[359050133,1745675441123,-515.2,0.00019979,2]
[359050136,1745675441133,-400.0,0.00019979,2]
[359050138,1745675441143,-488.59,0.00019979,2]
[359050139,1745675441152,-400.0,0.00019979,2]
[359050141,1745675441161,-207.32151966,0.00019979,2]
[359050143,1745675441171,-691.02,0.00019979,2]
[359050145,1745675441181,-200.0,0.00019979,2]
[359050147,1745675441190,-200.0,0.00019979,2]
[359050149,1745675441200,-400.0,0.00019979,2]
[359050152,1745675441209,-400.0,0.00019979,2]
[359050153,1745675441219,-443.34,0.00019979,2]
[359050154,1745675441229,-400.0,0.00019979,2]
[359050155,1745675441240,-817.89,0.00019979,2]
[359050156,1745675441251,-400.0,0.00019979,2]
[359050157,1745675441261,-400.0,0.00019979,2]
[359050158,1745675441271,-400.0,0.00019979,2]
[359050159,1745675441282,-400.0,0.00019979,2]
[359050160,1745675441292,-400.0,0.00019979,2]
[359050161,1745675441301,-719.26,0.00019979,2]
[359050162,1745675441311,-400.0,0.00019979,2]
[359050163,1745675441320,-400.0,0.00019979,2]
[359050165,1745675441333,-410.99,0.00019979,2]
[359050166,1745675441342,-702.14,0.00019979,2]
[359050167,1745675441352,-588.21,0.00019979,2]
[359050168,1745675441361,-400.0,0.00019979,2]
[359050170,1745675441371,-400.0,0.00019979,2]
[359050172,1745675441381,-482.41,0.00019979,2]
[359050174,1745675441392,-651.21,0.00019979,2]
[359050176,1745675441402,-451.71,0.00019979,2]
[359050178,1745675441413,-768.87,0.00019979,2]
[359050180,1745675441423,-400.0,0.00019979,2]
[359050182,1745675441434,-400.0,0.00019979,2]
[359050184,1745675441444,-737.92,0.00019979,2]
[359050186,1745675441454,-400.0,0.00019979,2]
[359050188,1745675441463,-400.0,0.00019979,2]
[359050190,1745675441473,-400.0,0.00019979,2]
[359050192,1745675441483,-400.0,0.00019979,2]
[359050194,1745675441492,-418.65,0.00019979,2]
[359050196,1745675441501,-529.37,0.00019979,2]
[359050198,1745675441511,-544.1,0.00019979,2]
[359050200,1745675441520,-765.46,0.00019979,2]
[359050202,1745675441530,-400.0,0.00019979,2]
[359050204,1745675441539,-400.0,0.00019979,2]
[359050206,1745675441549,-400.0,0.00019979,2]
[359050208,1745675441559,-533.25,0.00019979,2]
[359050210,1745675441569,-200.0,0.00019979,2]
[359050212,1745675441580,-400.0,0.00019979,2]
[359050214,1745675441590,-400.0,0.00019979,2]
[359050216,1745675441599,-400.0,0.00019979,2]
[359050218,1745675441609,-771.0,0.00019979,2]
[359050220,1745675441619,-597.06,0.00019979,2]
[359050222,1745675441630,-400.0,0.00019979,2]
[359050224,1745675441640,-500.0,0.00019979,2]
[359050226,1745675441650,-400.0,0.00019979,2]
[359050228,1745675441659,-804.16,0.00019979,2]
[359050230,1745675441669,-400.0,0.00019979,2]
[359050232,1745675441678,-400.0,0.00019979,2]
[359050234,1745675441689,-400.0,0.00019979,2]
[359050236,1745675441699,-400.0,0.00019979,2]
[359050238,1745675441708,-400.0,0.00019979,2]
[359050240,1745675441717,-400.0,0.00019979,2]
[359050242,1745675441726,-400.0,0.00019979,2]
[359050244,1745675441735,-400.0,0.00019979,2]
[359050246,1745675441745,-896.19,0.00019979,2]
[359050248,1745675441756,-1727.14,0.00019979,2]
[359050250,1745675441766,-415.96,0.00019979,2]
[359050252,1745675441776,-516.27,0.00019979,2]
[359050254,1745675441785,-400.0,0.00019979,2]
[359050256,1745675441795,-400.0,0.00019979,2]
[359050258,1745675441804,-400.0,0.00019979,2]
[359050260,1745675441813,-374.90937011,0.00019979,2]
[359050262,1745675441823,-600.61,0.00019979,2]
[359050264,1745675441833,-400.0,0.00019979,2]
[359050266,1745675441844,-400.0,0.00019979,2]
[359050268,1745675441854,-400.0,0.00019979,2]
[359050270,1745675441863,-513.67,0.00019979,2]
[359050272,1745675441874,-606.14,0.00019979,2]
[359050274,1745675441883,-400.0,0.00019979,2]
[359050276,1745675441892,-400.0,0.00019979,2]
[359050278,1745675441901,-400.0,0.00019979,2]
[359050280,1745675441911,-1259.23,0.00019979,2]
[359050282,1745675441920,-156.30465013,0.00019979,2]
[359050284,1745675441930,-400.0,0.00019979,2]
[359050286,1745675441940,-206.05235165,0.00019979,2]
[359050288,1745675441950,-815.87,0.00019979,2]
[359050290,1745675441959,-786.47,0.00019979,2]
[359050292,1745675441969,-1027.15,0.00019979,2]
[359050294,1745675441979,-400.0,0.00019979,2]
[359050296,1745675441989,-400.0,0.00019979,2]
[359050298,1745675441999,-400.0,0.00019979,2]
[359050300,1745675442009,-1126.75,0.00019979,2]
[359050302,1745675442018,-400.0,0.00019979,2]
[359050304,1745675442028,-400.0,0.00019979,2]
[359050306,1745675442037,-400.0,0.00019979,2]
[359050308,1745675442046,-400.0,0.00019979,2]
[359050310,1745675442055,-400.0,0.00019979,2]
[359050312,1745675442065,-400.0,0.00019979,2]
[359050314,1745675442074,-1935.46,0.00019979,2]
[359050316,1745675442084,-400.0,0.00019979,2]
[359050318,1745675442094,-972.33,0.00019979,2]
[359050320,1745675442103,-400.0,0.00019979,2]
[359050322,1745675442112,-510.7,0.00019979,2]
[359050324,1745675442122,-409.76,0.00019979,2]
[359050326,1745675442131,-400.0,0.00019979,2]
[359050328,1745675442141,-400.0,0.00019979,2]
[359050330,1745675442151,-614.89,0.00019979,2]
[359050332,1745675442160,-500.0,0.00019979,2]
[359050334,1745675442169,-400.0,0.00019979,2]
[359050336,1745675442179,-714.02,0.00019979,2]
[359050338,1745675442188,-548.31,0.00019979,2]
[359050340,1745675442197,-553.61,0.00019979,2]
[359050342,1745675442206,-200.0,0.00019979,2]
[359050344,1745675442215,-400.0,0.00019979,2]
[359050346,1745675442225,-400.0,0.00019979,2]
[359050348,1745675442234,-870.86,0.00019979,2]
[359050350,1745675442243,-400.0,0.00019979,2]
[359050352,1745675442252,-400.0,0.00019979,2]
[359050354,1745675442262,-486.97,0.00019979,2]
[359050356,1745675442271,-400.0,0.00019979,2]
[359050358,1745675442281,-300.0,0.00019979,2]
[359050360,1745675442290,-400.0,0.00019979,2]
[359050362,1745675442300,-400.0,0.00019979,2]
[359050364,1745675442309,-954.21,0.00019979,2]
[359050366,1745675442318,-400.0,0.00019979,2]
[359050368,1745675442331,-400.0,0.00019979,2]
[359050370,1745675442341,-400.0,0.00019979,2]
[359050372,1745675442351,-660.5,0.00019979,2]
[359050374,1745675442360,-400.0,0.00019979,2]
[359050376,1745675442370,-576.63,0.00019979,2]
[359050378,1745675442380,-400.0,0.00019979,2]
[359050380,1745675442389,-400.0,0.00019979,2]
[359050382,1745675442399,-400.0,0.00019979,2]
[359050384,1745675442409,-400.0,0.00019979,2]
[359050386,1745675442419,-423.81,0.00019979,2]
[359050388,1745675442428,-628.0,0.00019979,2]
[359050390,1745675442438,-400.0,0.00019979,2]
[359050392,1745675442447,-400.0,0.00019979,2]
[359050394,1745675442457,-672.14,0.00019979,2]
[359050396,1745675442466,-400.0,0.00019979,2]
[359050398,1745675442476,-459.49,0.00019979,2]
[359050400,1745675442486,-400.0,0.00019979,2]
[359050402,1745675442496,-400.0,0.00019979,2]
[359050404,1745675442506,-400.0,0.00019979,2]
[359050406,1745675442516,-200.0,0.00019979,2]
[359050408,1745675442525,-400.0,0.00019979,2]
[359050410,1745675442535,-400.0,0.00019979,2]
[359050412,1745675442544,-182.67810974,0.00019979,2]
[359050414,1745675442553,-400.0,0.00019979,2]
[359050417,1745675442563,-482.24,0.00019979,2]
[359050419,1745675442573,-400.0,0.00019979,2]
[359050421,1745675442582,-400.0,0.00019979,2]
[359050423,1745675442591,-400.0,0.00019979,2]
[359050425,1745675442603,-400.0,0.00019979,2]
[359050426,1745675442613,-499.57,0.00019979,2]
[359050428,1745675442623,-400.0,0.00019979,2]
[359050431,1745675442634,-453.83855571,0.00019979,2]
[359050433,1745675442644,-400.0,0.00019979,2]
[359050434,1745675442654,-690.95,0.00019979,2]
[359050436,1745675442664,-400.0,0.00019979,2]
[359050438,1745675442676,-424.43,0.00019979,2]
[359050440,1745675442686,-192.18826043,0.00019979,2]
[359050443,1745675442696,-400.0,0.00019979,2]
[359050444,1745675442705,-400.0,0.00019979,2]
[359050446,1745675442715,-229.68816259,0.00019979,2]
[359050448,1745675442724,-400.0,0.00019979,2]
[359050451,1745675442734,-4185.23,0.00019979,2]
[359050453,1745675442743,-687.46,0.00019979,2]
[359050455,1745675442755,-564.07,0.00019979,2]
[359050457,1745675442764,-1913.89,0.00019979,2]
[359050459,1745675442773,-728.99,0.00019979,2]
[359050461,1745675442782,-669.27,0.00019979,2]
[359050463,1745675442791,-844.63,0.00019979,2]
[359050465,1745675442801,-400.0,0.00019979,2]
[359050466,1745675442810,-3335.1,0.00019979,2]
[359050468,1745675442819,-423.19,0.00019979,2]
[359050470,1745675442830,-400.0,0.00019979,2]
[359050472,1745675442839,-400.0,0.00019979,2]
[359050474,1745675442849,-481.18,0.00019979,2]
[359050476,1745675442859,-709.36,0.00019979,2]
[359050479,1745675442869,-400.0,0.00019979,2]
[359050481,1745675442879,-400.0,0.00019979,2]
[359050483,1745675442888,-535.93,0.00019979,2]
[359050485,1745675442898,-400.0,0.00019979,2]
[359050487,1745675442909,-482.06,0.00019979,2]
[359050489,1745675442918,-591.56,0.00019979,2]
[359050491,1745675442930,-802.45,0.00019979,2]
[359050493,1745675442939,-400.0,0.00019979,2]
[359050495,1745675442949,-412.08,0.00019979,2]
[359050497,1745675442959,-1188.13,0.00019979,2]
[359050499,1745675442968,-400.0,0.00019979,2]
[359050501,1745675442978,-400.0,0.00019979,2]
[359050502,1745675442987,-400.0,0.00019979,2]
[359050504,1745675442996,-400.0,0.00019979,2]
[359050506,1745675443006,-917.46,0.00019979,2]
[359050509,1745675443015,-400.0,0.00019979,2]
[359050511,1745675443025,-400.0,0.00019979,2]
[359050513,1745675443035,-574.25,0.00019979,2]
[359050515,1745675443044,-400.0,0.00019979,2]
[359050517,1745675443053,-400.0,0.00019979,2]
[359050519,1745675443063,-400.0,0.00019979,2]
[359050521,1745675443073,-505.85,0.00019979,2]
[359050523,1745675443082,-400.0,0.00019979,2]
[359050524,1745675443092,-3843.53,0.00019979,2]
[359050527,1745675443102,-552.48,0.00019979,2]
[359050529,1745675443113,-400.0,0.00019979,2]
[359050531,1745675443123,-400.0,0.00019979,2]
[359050533,1745675443132,-400.0,0.00019979,2]
[359050535,1745675443142,-400.0,0.00019979,2]
[359050537,1745675443151,-300.0,0.00019979,2]
[359050539,1745675443160,-103183.53,0.00019979,2]
[359050541,1745675443170,-543.69,0.00019979,2]
[359050543,1745675443180,-500.0,0.00019979,2]
[359050545,1745675443189,-400.0,0.00019979,2]
[359050547,1745675443199,-648.3,0.00019979,2]
[359050549,1745675443208,-400.0,0.00019979,2]
[359050551,1745675443217,-2611.0,0.00019979,2]
[359050553,1745675443226,-444.44,0.00019979,2]
[359050555,1745675443236,-715.54,0.00019979,2]
[359050557,1745675443245,-12360.77,0.00019979,2]
[359050559,1745675443255,-400.0,0.00019979,2]
[359050561,1745675443264,-470.54,0.00019979,2]
[359050563,1745675443273,-400.0,0.00019979,2]
[359050565,1745675443283,-500.0,0.00019979,2]
[359050567,1745675443292,-500.0,0.00019979,2]
[359050569,1745675443301,-400.0,0.00019979,2]
[359050571,1745675443311,-400.0,0.00019979,2]
[359050573,1745675443320,-425.83,0.00019979,2]
[359050574,1745675443331,-566.04,0.00019979,2]
[359050577,1745675443340,-400.0,0.00019979,2]
[359050578,1745675443350,-6364.73,0.00019979,2]
[359050581,1745675443359,-642.43,0.00019979,2]
[359050582,1745675443370,-400.0,0.00019979,2]
[359050584,1745675443379,-409.07,0.00019979,2]
[359050587,1745675443389,-400.0,0.00019979,2]
[359050588,1745675443398,-400.0,0.00019979,2]
[359050590,1745675443408,-400.0,0.00019979,2]
[359050592,1745675443417,-2448.22,0.00019979,2]
[359050594,1745675443427,-717.77,0.00019979,2]
[359050596,1745675443436,-485.26,0.00019979,2]
[359050599,1745675443447,-400.0,0.00019979,2]
[359050601,1745675443456,-400.0,0.00019979,2]
[359050603,1745675443466,-350.02092659,0.00019979,2]
[359050605,1745675443476,-5109.19,0.00019979,2]
[359050607,1745675443485,-334.88885956,0.00019979,2]
[359050609,1745675443495,-768.66,0.00019979,2]
[359050611,1745675443504,-400.0,0.00019979,2]
[359050612,1745675443513,-400.0,0.00019979,2]
[359050614,1745675443523,-400.0,0.00019979,2]
[359050617,1745675443532,-400.0,0.00019979,2]
[359050619,1745675443542,-400.0,0.00019979,2]
[359050621,1745675443552,-552.66,0.00019979,2]
[359050623,1745675443562,-823.38,0.00019979,2]
[359050625,1745675443571,-400.0,0.00019979,2]
[359050627,1745675443581,-400.0,0.00019979,2]
[359050629,1745675443590,-400.0,0.00019979,2]
[359050631,1745675443600,-417.48,0.00019979,2]
[359050633,1745675443609,-400.0,0.00019979,2]
[359050635,1745675443620,-400.0,0.00019979,2]
[359050637,1745675443629,-618.86,0.00019979,2]
[359050639,1745675443638,-701.33,0.00019979,2]
[359050641,1745675443648,-621.69,0.00019979,2]
[359050643,1745675443657,-826.3,0.00019979,2]
[359050645,1745675443668,-634.71,0.00019979,2]
[359050647,1745675443677,-400.0,0.00019979,2]
[359050649,1745675443687,-533.23,0.00019979,2]
[359050651,1745675443696,-972.58,0.00019979,2]
[359050653,1745675443705,-400.0,0.00019979,2]
[359050655,1745675443715,-457.11,0.00019979,2]
[359050657,1745675443724,-400.0,0.00019979,2]
[359050659,1745675443734,-400.0,0.00019979,2]
[359050661,1745675443744,-400.0,0.00019979,2]
[359050663,1745675443753,-400.0,0.00019979,2]
[359050665,1745675443762,-703.5,0.00019979,2]
[359050667,1745675443772,-446.77,0.00019979,2]
[359050669,1745675443782,-400.0,0.00019979,2]
[359050671,1745675443791,-400.0,0.00019979,2]
[359050673,1745675443801,-400.0,0.00019979,2]
[359050675,1745675443812,-777.12,0.00019979,2]
[359050677,1745675443822,-707.55,0.00019979,2]
[359050679,1745675443831,-193635.53487692,0.00019979,2]
[359050819,1745675445223,-400.0,0.00019978,2]
[359050822,1745675445234,-47.72946,0.00019979,2]
[359050824,1745675445247,-38120.87566308,0.00019979,2]
[359050827,1745675445264,-400.0,0.00019979,2]
[359050829,1745675445274,-400.0,0.00019979,2]
[359050831,1745675445284,-652.4,0.00019979,2]
[359050833,1745675445295,-400.0,0.00019979,2]
[359050835,1745675445306,-567.63,0.00019979,2]
[359050837,1745675445317,-400.0,0.00019979,2]
[359050839,1745675445328,-659.28,0.00019979,2]
[359050841,1745675445345,-455.72,0.00019979,2]
[359050843,1745675445356,-400.0,0.00019979,2]
[359050845,1745675445367,-400.0,0.00019979,2]
[359050847,1745675445378,-1160.42,0.00019979,2]
[359050849,1745675445388,-488.55,0.00019979,2]
[359050850,1745675445398,-400.0,0.00019979,2]
[359050852,1745675445408,-434.21,0.00019979,2]
[359050854,1745675445419,-641.44,0.00019979,2]
[359050856,1745675445429,-220.92064094,0.00019979,2]
[359050857,1745675445439,-400.0,0.00019979,2]
[359050859,1745675445450,-400.0,0.00019979,2]
[359050861,1745675445461,-400.0,0.00019979,2]
[359050863,1745675445471,-402.4,0.00019979,2]
[359050865,1745675445481,-400.0,0.00019979,2]
[359050866,1745675445491,-387.91921698,0.00019979,2]
[359050868,1745675445501,-826.45,0.00019979,2]
[359050870,1745675445511,-404.18,0.00019979,2]
[359050872,1745675445522,-818.18,0.00019979,2]
[359050874,1745675445532,-400.0,0.00019979,2]
[359050875,1745675445542,-483.63,0.00019979,2]
[359050877,1745675445552,-489.87,0.00019979,2]
[359050879,1745675445562,-400.0,0.00019979,2]
[359050880,1745675445571,-400.0,0.00019979,2]
[359050882,1745675445582,-400.0,0.00019979,2]
[359050884,1745675445592,-4451.81,0.00019979,2]
[359050886,1745675445602,-275.02640054,0.00019979,2]
[359050888,1745675445612,-496.98,0.00019979,2]
[359050889,1745675445623,-400.0,0.00019979,2]